[Event "Titled Tuesday Blitz July 11 Early 2023"]
[White "Horokoskii"]
[Black "Ncatt"]
[WhiteElo "2138"]
[BlackElo "2374"]
[Result "0-1"]
[Round "6"]
[TimeControl "180+2"]
[Date "2023.07.11"]
[WhiteClock "0:02:04"]
[BlackClock "0:02:28"]
[Board "161"]

1. d4 {[%clk 0:03:00]}  Nf6 {[%clk 0:03:00]} 2. c4 {[%clk 0:03:00]}  e6 {[%clk 0:03:00]} 3. g3 {[%clk 0:03:00]}  c5 {[%clk 0:03:00]} 4. Nf3 {[%clk 0:02:56]}  cxd4 {[%clk 0:02:57]} 5. Nxd4 {[%clk 0:02:57]}  Nc6 {[%clk 0:02:58]} 6. Bg2 {[%clk 0:02:56]}  Bc5 {[%clk 0:02:57]} 7. Be3 {[%clk 0:02:51]}  Qb6 {[%clk 0:02:52]} 8. Bxc6 {[%clk 0:02:22]}  bxc6 {[%clk 0:02:52]} 9. Qd2 {[%clk 0:02:21]}  Ba6 {[%clk 0:02:32]} 10. Na3 {[%clk 0:02:04]}  Bb4 {[%clk 0:02:28]} 0-1


[Site "https://www.chess.com"]

[Event "Titled Tuesday Blitz July 11 Early 2023"]
[White "Hrescak, Ivana"]
[Black "Buscar, Michael"]
[WhiteFideId "14613441"]
[BlackFideId "2603616"]
[WhiteElo "2132"]
[BlackElo "2349"]
[Result "1-0"]
[Round "6"]
[TimeControl "180+2"]
[Date "2023.07.11"]
[WhiteClock "0:00:10"]
[BlackClock "0:00:00"]
[Board "162"]

1. e4 {[%clk 0:03:00]}  c5 {[%clk 0:02:55]} 2. Nf3 {[%clk 0:03:00]}  Nc6 {[%clk 0:02:56]} 3. Bb5 {[%clk 0:02:58]}  Nf6 {[%clk 0:02:54]} 4. Nc3 {[%clk 0:02:51]}  g6 {[%clk 0:02:53]} 5. Bxc6 {[%clk 0:02:42]}  bxc6 {[%clk 0:02:38]} 6. e5 {[%clk 0:02:38]}  Nd5 {[%clk 0:02:38]} 7. Nxd5 {[%clk 0:02:34]}  cxd5 {[%clk 0:02:38]} 8. d4 {[%clk 0:02:34]}  Ba6 {[%clk 0:02:30]} 9. dxc5 {[%clk 0:02:23]}  Qa5+ {[%clk 0:02:29]} 10. c3 {[%clk 0:02:17]}  Qxc5 {[%clk 0:02:29]} 11. Be3 {[%clk 0:02:17]}  Qb5 {[%clk 0:02:27]} 12. Qd2 {[%clk 0:02:05]}  Bg7 {[%clk 0:02:18]} 13. Nd4 {[%clk 0:02:02]}  Qc4 {[%clk 0:02:11]} 14. f4 {[%clk 0:01:47]}  Rb8 {[%clk 0:01:56]} 15. b3 {[%clk 0:01:37]}  Qd3 {[%clk 0:01:52]} 16. Qxd3 {[%clk 0:01:36]}  Bxd3 {[%clk 0:01:53]} 17. O-O-O {[%clk 0:01:27]}  Be4 {[%clk 0:01:53]} 18. Rd2 {[%clk 0:01:13]}  O-O {[%clk 0:01:52]} 19. Kb2 {[%clk 0:01:07]}  f6 {[%clk 0:01:49]} 20. exf6 {[%clk 0:00:57]}  Bxf6 {[%clk 0:01:42]} 21. Nf3 {[%clk 0:00:57]}  e6 {[%clk 0:01:24]} 22. Rf1 {[%clk 0:00:52]}  Rbc8 {[%clk 0:01:14]} 23. Bd4 {[%clk 0:00:52]}  Be7 {[%clk 0:00:46]} 24. Rff2 {[%clk 0:00:38]}  Rxf4 {[%clk 0:00:43]} 25. Bxa7 {[%clk 0:00:38]}  Ra8 {[%clk 0:00:36]} 26. Bd4 {[%clk 0:00:37]}  Ba3+ {[%clk 0:00:36]} 27. Ka1 {[%clk 0:00:36]}  g5 {[%clk 0:00:32]} 28. b4 {[%clk 0:00:34]}  g4 {[%clk 0:00:31]} 29. Ne5 {[%clk 0:00:31]}  Raf8 {[%clk 0:00:22]} 30. g3 {[%clk 0:00:22]}  Rxf2 {[%clk 0:00:14]} 31. Rxf2 {[%clk 0:00:22]}  Rxf2 {[%clk 0:00:11]} 32. Bxf2 {[%clk 0:00:23]}  d6 {[%clk 0:00:09]} 33. Nc6 {[%clk 0:00:16]}  e5 {[%clk 0:00:07]} 34. Be3 {[%clk 0:00:14]}  Kf7 {[%clk 0:00:07]} 35. Na7 {[%clk 0:00:14]}  d4 {[%clk 0:00:05]} 36. cxd4 {[%clk 0:00:14]}  Bxb4 {[%clk 0:00:05]} 37. Kb2 {[%clk 0:00:11]}  exd4 {[%clk 0:00:04]} 38. Bxd4 {[%clk 0:00:11]}  Ke6 {[%clk 0:00:04]} 39. Nb5 {[%clk 0:00:11]}  Kd5 {[%clk 0:00:03]} 40. Bg7 {[%clk 0:00:10]}  Bc5 {[%clk 0:00:00]} 41. Nc3+ {[%clk 0:00:10]} 1-0


[Site "https://www.chess.com"]

[Event "Titled Tuesday Blitz July 11 Early 2023"]
[White "Lakshmi C"]
[Black "Todorovic, Bojan"]
[WhiteFideId "25035347"]
[BlackFideId "917087"]
[WhiteElo "2115"]
[BlackElo "2320"]
[Result "0-1"]
[Round "6"]
[TimeControl "180+2"]
[Date "2023.07.11"]
[WhiteClock "0:00:01"]
[BlackClock "0:00:05"]
[Board "164"]

1. g3 {[%clk 0:01:56]}  g6 {[%clk 0:02:58]} 2. Bg2 {[%clk 0:01:48]}  Bg7 {[%clk 0:02:57]} 3. f4 {[%clk 0:01:39]}  Nf6 {[%clk 0:02:56]} 4. Nh3 {[%clk 0:01:25]}  c5 {[%clk 0:02:52]} 5. Nf2 {[%clk 0:01:24]}  d5 {[%clk 0:02:50]} 6. O-O {[%clk 0:01:23]}  Nc6 {[%clk 0:02:49]} 7. d3 {[%clk 0:01:12]}  h5 {[%clk 0:02:39]} 8. e4 {[%clk 0:01:07]}  h4 {[%clk 0:02:35]} 9. e5 {[%clk 0:00:59]}  hxg3 {[%clk 0:02:33]} 10. hxg3 {[%clk 0:00:54]}  Nh5 {[%clk 0:02:33]} 11. Nh1 {[%clk 0:00:34]}  f5 {[%clk 0:01:54]} 12. Nc3 {[%clk 0:00:08]}  Be6 {[%clk 0:01:51]} 13. Qf3 {[%clk 0:00:07]}  Nd4 {[%clk 0:01:50]} 14. Qf2 {[%clk 0:00:07]}  Qd7 {[%clk 0:01:46]} 15. Be3 {[%clk 0:00:07]}  O-O {[%clk 0:01:38]} 16. Bxd4 {[%clk 0:00:07]}  cxd4 {[%clk 0:01:39]} 17. Qxd4 {[%clk 0:00:07]}  Rfd8 {[%clk 0:01:36]} 18. Qf2 {[%clk 0:00:06]}  d4 {[%clk 0:01:35]} 19. Ne2 {[%clk 0:00:06]}  Rac8 {[%clk 0:01:34]} 20. Rac1 {[%clk 0:00:06]}  Bd5 {[%clk 0:01:23]} 21. Bxd5+ {[%clk 0:00:05]}  Qxd5 {[%clk 0:01:23]} 22. Qf3 {[%clk 0:00:05]}  Qb5 {[%clk 0:01:13]} 23. g4 {[%clk 0:00:05]}  fxg4 {[%clk 0:01:12]} 24. Qxg4 {[%clk 0:00:05]}  Qc6 {[%clk 0:01:08]} 25. b3 {[%clk 0:00:05]}  Qd5 {[%clk 0:00:51]} 26. Qxg6 {[%clk 0:00:03]}  Qf7 {[%clk 0:00:52]} 27. Qxf7+ {[%clk 0:00:03]}  Kxf7 {[%clk 0:00:52]} 28. Nf2 {[%clk 0:00:04]}  e6 {[%clk 0:00:51]} 29. Ne4 {[%clk 0:00:04]}  Bh6 {[%clk 0:00:50]} 30. Kh2 {[%clk 0:00:04]}  Ke7 {[%clk 0:00:47]} 31. Nd6 {[%clk 0:00:04]}  Rc7 {[%clk 0:00:45]} 32. f5 {[%clk 0:00:03]}  Bxc1 {[%clk 0:00:43]} 33. f6+ {[%clk 0:00:03]}  Kf8 {[%clk 0:00:42]} 34. Rxc1 {[%clk 0:00:03]}  Rh7 {[%clk 0:00:38]} 35. Kg2 {[%clk 0:00:04]}  Rxd6 {[%clk 0:00:38]} 36. exd6 {[%clk 0:00:03]}  Nxf6 {[%clk 0:00:39]} 37. Nxd4 {[%clk 0:00:04]}  e5 {[%clk 0:00:35]} 38. Nf5 {[%clk 0:00:04]}  Rh5 {[%clk 0:00:33]} 39. Ne3 {[%clk 0:00:03]}  e4 {[%clk 0:00:31]} 40. dxe4 {[%clk 0:00:03]}  Nxe4 {[%clk 0:00:32]} 41. Rd1 {[%clk 0:00:03]}  Ke8 {[%clk 0:00:27]} 42. Rd4 {[%clk 0:00:02]}  Re5 {[%clk 0:00:19]} 43. c4 {[%clk 0:00:02]}  Kd7 {[%clk 0:00:19]} 44. Ng4 {[%clk 0:00:02]}  Re6 {[%clk 0:00:18]} 45. Rxe4 {[%clk 0:00:02]}  Rxd6 {[%clk 0:00:16]} 46. Ne5+ {[%clk 0:00:02]}  Kc7 {[%clk 0:00:15]} 47. Nf3 {[%clk 0:00:02]}  Rd3 {[%clk 0:00:13]} 48. Kf2 {[%clk 0:00:02]}  a5 {[%clk 0:00:14]} 49. Re2 {[%clk 0:00:02]}  a4 {[%clk 0:00:13]} 50. Rd2 {[%clk 0:00:03]}  Rc3 {[%clk 0:00:13]} 51. b4 {[%clk 0:00:02]}  Rxc4 {[%clk 0:00:13]} 52. a3 {[%clk 0:00:03]}  Rc3 {[%clk 0:00:13]} 53. Ra2 {[%clk 0:00:03]}  Kc6 {[%clk 0:00:12]} 54. Ke2 {[%clk 0:00:03]}  Kd5 {[%clk 0:00:12]} 55. Nd2 {[%clk 0:00:04]}  Kd4 {[%clk 0:00:10]} 56. Kd1 {[%clk 0:00:04]}  b5 {[%clk 0:00:10]} 57. Ke2 {[%clk 0:00:04]}  Rd3 {[%clk 0:00:09]} 58. Ra1 {[%clk 0:00:05]}  Rh3 {[%clk 0:00:09]} 59. Nf3+ {[%clk 0:00:05]}  Kc4 {[%clk 0:00:09]} 60. Ne5+ {[%clk 0:00:05]}  Kb3 {[%clk 0:00:08]} 61. Nc6 {[%clk 0:00:04]}  Rh2+ {[%clk 0:00:07]} 62. Kd3 {[%clk 0:00:04]}  Rh3+ {[%clk 0:00:08]} 63. Kd2 {[%clk 0:00:03]}  Kb2 {[%clk 0:00:08]} 64. Rg1 {[%clk 0:00:03]}  Kxa3 {[%clk 0:00:08]} 65. Rb1 {[%clk 0:00:02]}  Rh2+ {[%clk 0:00:06]} 66. Kc3 {[%clk 0:00:02]}  Rh3+ {[%clk 0:00:06]} 67. Kc2 {[%clk 0:00:03]}  Rh2+ {[%clk 0:00:07]} 68. Kc3 {[%clk 0:00:03]}  Rh3+ {[%clk 0:00:07]} 69. Kc2 {[%clk 0:00:03]}  Rh4 {[%clk 0:00:06]} 70. Kc3 {[%clk 0:00:03]}  Rc4+ {[%clk 0:00:06]} 71. Kd3 {[%clk 0:00:03]}  Rxc6 {[%clk 0:00:06]} 72. Kd2 {[%clk 0:00:02]}  Rc4 {[%clk 0:00:06]} 73. Ra1+ {[%clk 0:00:01]}  Kxb4 {[%clk 0:00:05]} 0-1


[Site "https://www.chess.com"]

[Event "Titled Tuesday Blitz July 11 Early 2023"]
[White "Navyblue1"]
[Black "Wernberg, Hugo"]
[BlackFideId "1737511"]
[WhiteElo "1771"]
[BlackElo "2317"]
[Result "0-1"]
[Round "6"]
[TimeControl "180+2"]
[Date "2023.07.11"]
[WhiteClock "0:00:02"]
[BlackClock "0:00:11"]
[Board "165"]

1. d4 {[%clk 0:03:00]}  d5 {[%clk 0:02:57]} 2. c4 {[%clk 0:02:58]}  e6 {[%clk 0:02:57]} 3. cxd5 {[%clk 0:02:58]}  exd5 {[%clk 0:02:57]} 4. Nc3 {[%clk 0:02:58]}  c6 {[%clk 0:02:54]} 5. Qc2 {[%clk 0:02:57]}  Nf6 {[%clk 0:02:44]} 6. Bg5 {[%clk 0:02:56]}  Be6 {[%clk 0:02:42]} 7. e3 {[%clk 0:02:55]}  Nbd7 {[%clk 0:02:42]} 8. Bd3 {[%clk 0:02:55]}  h6 {[%clk 0:02:42]} 9. Bh4 {[%clk 0:02:54]}  Bd6 {[%clk 0:02:42]} 10. Nge2 {[%clk 0:02:43]}  O-O {[%clk 0:02:41]} 11. h3 {[%clk 0:02:14]}  Re8 {[%clk 0:02:22]} 12. O-O {[%clk 0:02:12]}  Qc7 {[%clk 0:02:18]} 13. Rac1 {[%clk 0:01:55]}  Rac8 {[%clk 0:02:15]} 14. a3 {[%clk 0:01:48]}  Nh5 {[%clk 0:02:08]} 15. f4 {[%clk 0:01:05]}  Nf8 {[%clk 0:01:43]} 16. Bf2 {[%clk 0:00:48]}  Nf6 {[%clk 0:01:39]} 17. Kh1 {[%clk 0:00:45]}  Bd7 {[%clk 0:01:33]} 18. Ng1 {[%clk 0:00:42]}  c5 {[%clk 0:01:18]} 19. dxc5 {[%clk 0:00:20]}  Bxc5 {[%clk 0:01:14]} 20. Nce2 {[%clk 0:00:17]}  Qb6 {[%clk 0:01:11]} 21. Qb1 {[%clk 0:00:10]}  Bxe3 {[%clk 0:01:09]} 22. Rxc8 {[%clk 0:00:09]}  Bxc8 {[%clk 0:01:04]} 23. Bxe3 {[%clk 0:00:10]}  Rxe3 {[%clk 0:01:02]} 24. Nf3 {[%clk 0:00:11]}  Ne6 {[%clk 0:00:53]} 25. Rd1 {[%clk 0:00:08]}  Ne4 {[%clk 0:00:49]} 26. Bxe4 {[%clk 0:00:06]}  dxe4 {[%clk 0:00:43]} 27. Qc2 {[%clk 0:00:05]}  exf3 {[%clk 0:00:38]} 28. gxf3 {[%clk 0:00:04]}  Rxf3 {[%clk 0:00:29]} 29. Qxc8+ {[%clk 0:00:04]}  Kh7 {[%clk 0:00:28]} 30. Qc2+ {[%clk 0:00:04]}  g6 {[%clk 0:00:28]} 31. Rd7 {[%clk 0:00:02]}  Rf1+ {[%clk 0:00:12]} 32. Kh2 {[%clk 0:00:02]}  Qf2# {[%clk 0:00:11]} 0-1


[Site "https://www.chess.com"]

[Event "Titled Tuesday Blitz July 11 Early 2023"]
[White "Pinheiro, Iung Alicio de O."]
[Black "Schachpanda_Youtube"]
[WhiteFideId "2104350"]
[WhiteElo "2565"]
[BlackElo "2195"]
[Result "1-0"]
[Round "6"]
[TimeControl "180+2"]
[Date "2023.07.11"]
[WhiteClock "0:00:08"]
[BlackClock "0:00:00"]
[Board "166"]

1. e4 {[%clk 0:02:12]}  c6 {[%clk 0:02:59]} 2. Nc3 {[%clk 0:02:11]}  d5 {[%clk 0:02:59]} 3. Nf3 {[%clk 0:02:11]}  dxe4 {[%clk 0:03:00]} 4. Nxe4 {[%clk 0:02:10]}  Nf6 {[%clk 0:03:00]} 5. Qe2 {[%clk 0:02:08]}  Nxe4 {[%clk 0:02:58]} 6. Qxe4 {[%clk 0:02:07]}  Nd7 {[%clk 0:02:58]} 7. Bc4 {[%clk 0:02:07]}  Nf6 {[%clk 0:02:58]} 8. Ne5 {[%clk 0:02:07]}  e6 {[%clk 0:02:59]} 9. Qe2 {[%clk 0:02:07]}  b5 {[%clk 0:02:59]} 10. Bb3 {[%clk 0:02:06]}  Qc7 {[%clk 0:02:47]} 11. d4 {[%clk 0:02:03]}  Bd6 {[%clk 0:02:47]} 12. Bf4 {[%clk 0:02:02]}  O-O {[%clk 0:02:46]} 13. Bg3 {[%clk 0:02:02]}  c5 {[%clk 0:02:41]} 14. c3 {[%clk 0:01:44]}  cxd4 {[%clk 0:02:38]} 15. cxd4 {[%clk 0:01:43]}  Bb4+ {[%clk 0:02:32]} 16. Kf1 {[%clk 0:01:43]}  Qb6 {[%clk 0:02:21]} 17. Rd1 {[%clk 0:01:35]}  Bb7 {[%clk 0:02:06]} 18. h4 {[%clk 0:01:23]}  Rad8 {[%clk 0:01:57]} 19. Qe3 {[%clk 0:01:10]}  Bd5 {[%clk 0:01:35]} 20. Bc2 {[%clk 0:01:07]}  Bc4+ {[%clk 0:01:31]} 21. Kg1 {[%clk 0:01:07]}  Be7 {[%clk 0:01:18]} 22. Bb1 {[%clk 0:00:53]}  Bd5 {[%clk 0:01:08]} 23. h5 {[%clk 0:00:51]}  Rc8 {[%clk 0:01:03]} 24. Rh4 {[%clk 0:00:42]}  Qb7 {[%clk 0:01:01]} 25. f3 {[%clk 0:00:37]}  Rc7 {[%clk 0:00:42]} 26. Ng4 {[%clk 0:00:32]}  Nxg4 {[%clk 0:00:40]} 27. Rxg4 {[%clk 0:00:32]}  Rd7 {[%clk 0:00:29]} 28. Qh6 {[%clk 0:00:22]}  g6 {[%clk 0:00:14]} 29. Be5 {[%clk 0:00:19]}  f6 {[%clk 0:00:08]} 30. hxg6 {[%clk 0:00:13]}  Bc5 {[%clk 0:00:02]} 31. gxh7+ {[%clk 0:00:09]}  Kh8 {[%clk 0:00:00]} 32. dxc5 {[%clk 0:00:08]} 1-0


[Site "https://www.chess.com"]

[Event "Titled Tuesday Blitz July 11 Early 2023"]
[White "Mishra, Manoj"]
[Black "Matyukov, Petr"]
[WhiteFideId "5006007"]
[BlackFideId "4103688"]
[WhiteElo "2172"]
[BlackElo "2465"]
[Result "1-0"]
[Round "6"]
[TimeControl "180+2"]
[Date "2023.07.11"]
[WhiteClock "0:00:13"]
[BlackClock "0:00:24"]
[Board "169"]

1. d4 {[%clk 0:02:59]}  Nf6 {[%clk 0:02:59]} 2. Bg5 {[%clk 0:02:57]}  d5 {[%clk 0:02:57]} 3. e3 {[%clk 0:02:56]}  c5 {[%clk 0:02:56]} 4. c3 {[%clk 0:02:55]}  Bf5 {[%clk 0:02:50]} 5. Nd2 {[%clk 0:02:49]}  e6 {[%clk 0:02:49]} 6. Ngf3 {[%clk 0:02:46]}  Nc6 {[%clk 0:02:49]} 7. Bb5 {[%clk 0:02:44]}  Qb6 {[%clk 0:02:47]} 8. a4 {[%clk 0:02:43]}  a6 {[%clk 0:02:44]} 9. Be2 {[%clk 0:02:39]}  Qxb2 {[%clk 0:02:35]} 10. O-O {[%clk 0:02:30]}  h6 {[%clk 0:02:28]} 11. Bf4 {[%clk 0:02:22]}  cxd4 {[%clk 0:02:16]} 12. cxd4 {[%clk 0:02:19]}  Be7 {[%clk 0:02:13]} 13. Qb3 {[%clk 0:02:05]}  Qxb3 {[%clk 0:02:02]} 14. Nxb3 {[%clk 0:02:06]}  O-O {[%clk 0:01:59]} 15. Rfc1 {[%clk 0:01:57]}  Rfc8 {[%clk 0:01:52]} 16. Nc5 {[%clk 0:01:50]}  Na5 {[%clk 0:01:47]} 17. Ne5 {[%clk 0:01:15]}  Bxc5 {[%clk 0:01:38]} 18. Rxc5 {[%clk 0:01:11]}  Rxc5 {[%clk 0:01:09]} 19. dxc5 {[%clk 0:01:12]}  Nb3 {[%clk 0:01:10]} 20. Ra3 {[%clk 0:01:07]}  Nxc5 {[%clk 0:01:07]} 21. g4 {[%clk 0:01:02]}  Bh7 {[%clk 0:00:54]} 22. h4 {[%clk 0:01:01]}  Rc8 {[%clk 0:00:52]} 23. g5 {[%clk 0:00:47]}  hxg5 {[%clk 0:00:49]} 24. hxg5 {[%clk 0:00:48]}  Nfe4 {[%clk 0:00:45]} 25. f3 {[%clk 0:00:47]}  Nd2 {[%clk 0:00:34]} 26. e4 {[%clk 0:00:45]}  Nb1 {[%clk 0:00:25]} 27. Ra1 {[%clk 0:00:45]}  dxe4 {[%clk 0:00:23]} 28. g6 {[%clk 0:00:37]}  exf3 {[%clk 0:00:20]} 29. gxh7+ {[%clk 0:00:36]}  Kxh7 {[%clk 0:00:19]} 30. Bxf3 {[%clk 0:00:36]}  Nc3 {[%clk 0:00:17]} 31. Rc1 {[%clk 0:00:34]}  N3xa4 {[%clk 0:00:17]} 32. Bxb7 {[%clk 0:00:31]}  Rb8 {[%clk 0:00:16]} 33. Bf3 {[%clk 0:00:29]}  Rb4 {[%clk 0:00:15]} 34. Be3 {[%clk 0:00:28]}  Nb3 {[%clk 0:00:14]} 35. Rd1 {[%clk 0:00:26]}  a5 {[%clk 0:00:14]} 36. Kf2 {[%clk 0:00:24]}  Nc3 {[%clk 0:00:14]} 37. Rh1+ {[%clk 0:00:23]}  Kg8 {[%clk 0:00:14]} 38. Bh5 {[%clk 0:00:22]}  g6 {[%clk 0:00:13]} 39. Bf3 {[%clk 0:00:20]}  a4 {[%clk 0:00:13]} 40. Nc6 {[%clk 0:00:17]}  Rb6 {[%clk 0:00:11]} 41. Bxb6 {[%clk 0:00:14]}  a3 {[%clk 0:00:12]} 42. Nb4 {[%clk 0:00:12]}  a2 {[%clk 0:00:12]} 43. Nxa2 {[%clk 0:00:12]}  Nxa2 {[%clk 0:00:12]} 44. Rb1 {[%clk 0:00:10]}  Nd2 {[%clk 0:00:10]} 45. Rb2 {[%clk 0:00:08]}  Nc4 {[%clk 0:00:11]} 46. Rxa2 {[%clk 0:00:08]}  Nxb6 {[%clk 0:00:11]} 47. Ra6 {[%clk 0:00:08]}  Nd7 {[%clk 0:00:12]} 48. Rd6 {[%clk 0:00:08]}  Nf8 {[%clk 0:00:12]} 49. Rd8 {[%clk 0:00:08]}  Kg7 {[%clk 0:00:13]} 50. Ke3 {[%clk 0:00:08]}  Nh7 {[%clk 0:00:14]} 51. Kf4 {[%clk 0:00:07]}  Nf6 {[%clk 0:00:15]} 52. Ra8 {[%clk 0:00:07]}  Nh5+ {[%clk 0:00:15]} 53. Bxh5 {[%clk 0:00:05]}  gxh5 {[%clk 0:00:15]} 54. Kg5 {[%clk 0:00:06]}  e5 {[%clk 0:00:14]} 55. Kxh5 {[%clk 0:00:06]}  Kf6 {[%clk 0:00:14]} 56. Kg4 {[%clk 0:00:06]}  Ke6 {[%clk 0:00:15]} 57. Ra5 {[%clk 0:00:06]}  f5+ {[%clk 0:00:14]} 58. Kg5 {[%clk 0:00:06]}  f4 {[%clk 0:00:14]} 59. Kg4 {[%clk 0:00:05]}  Kd6 {[%clk 0:00:14]} 60. Kf3 {[%clk 0:00:05]}  Ke6 {[%clk 0:00:14]} 61. Ke4 {[%clk 0:00:06]}  Kf6 {[%clk 0:00:14]} 62. Rxe5 {[%clk 0:00:06]}  f3 {[%clk 0:00:15]} 63. Rf5+ {[%clk 0:00:06]}  Ke6 {[%clk 0:00:15]} 64. Rxf3 {[%clk 0:00:07]}  Kd7 {[%clk 0:00:16]} 65. Rf6 {[%clk 0:00:07]}  Kc7 {[%clk 0:00:16]} 66. Ra6 {[%clk 0:00:08]}  Kb7 {[%clk 0:00:17]} 67. Rh6 {[%clk 0:00:09]}  Kc7 {[%clk 0:00:18]} 68. Kd5 {[%clk 0:00:09]}  Kb7 {[%clk 0:00:19]} 69. Kc5 {[%clk 0:00:10]}  Kc7 {[%clk 0:00:20]} 70. Rh7+ {[%clk 0:00:08]}  Kd8 {[%clk 0:00:20]} 71. Kc6 {[%clk 0:00:09]}  Ke8 {[%clk 0:00:21]} 72. Kd6 {[%clk 0:00:09]}  Kf8 {[%clk 0:00:22]} 73. Ke6 {[%clk 0:00:10]}  Kg8 {[%clk 0:00:22]} 74. Ra7 {[%clk 0:00:11]}  Kf8 {[%clk 0:00:23]} 75. Rb7 {[%clk 0:00:11]}  Kg8 {[%clk 0:00:24]} 76. Kf6 {[%clk 0:00:11]}  Kh8 {[%clk 0:00:24]} 77. Kg6 {[%clk 0:00:12]}  Kg8 {[%clk 0:00:24]} 78. Rb8# {[%clk 0:00:13]} 1-0


[Site "https://www.chess.com"]

[Event "Titled Tuesday Blitz July 11 Early 2023"]
[White "Rom, Jasper"]
[Black "HeinichessPY"]
[WhiteFideId "2023733"]
[WhiteElo "2403"]
[BlackElo "2149"]
[Result "1-0"]
[Round "6"]
[TimeControl "180+2"]
[Date "2023.07.11"]
[WhiteClock "0:00:23"]
[BlackClock "0:00:35"]
[Board "171"]

1. e4 {[%clk 0:02:55]}  c5 {[%clk 0:02:59]} 2. Nc3 {[%clk 0:02:54]}  Nc6 {[%clk 0:03:00]} 3. f4 {[%clk 0:02:54]}  e6 {[%clk 0:02:57]} 4. Nf3 {[%clk 0:02:54]}  g6 {[%clk 0:02:53]} 5. e5 {[%clk 0:02:53]}  h5 {[%clk 0:02:53]} 6. Ne4 {[%clk 0:02:43]}  d5 {[%clk 0:02:52]} 7. Neg5 {[%clk 0:02:33]}  Nh6 {[%clk 0:02:46]} 8. Bb5 {[%clk 0:02:32]}  Bg7 {[%clk 0:02:46]} 9. O-O {[%clk 0:02:24]}  O-O {[%clk 0:02:45]} 10. c3 {[%clk 0:02:24]}  c4 {[%clk 0:02:42]} 11. Bxc6 {[%clk 0:02:09]}  bxc6 {[%clk 0:02:37]} 12. b3 {[%clk 0:02:08]}  Ba6 {[%clk 0:02:34]} 13. b4 {[%clk 0:02:07]}  c5 {[%clk 0:02:27]} 14. bxc5 {[%clk 0:02:01]}  Qa5 {[%clk 0:02:27]} 15. a4 {[%clk 0:01:59]}  Rfc8 {[%clk 0:02:25]} 16. Ba3 {[%clk 0:01:59]}  Bf8 {[%clk 0:02:25]} 17. Bb4 {[%clk 0:01:52]}  Bxc5+ {[%clk 0:02:25]} 18. Bxc5 {[%clk 0:01:49]}  Qxc5+ {[%clk 0:02:25]} 19. Nd4 {[%clk 0:01:47]}  Nf5 {[%clk 0:02:22]} 20. Nf3 {[%clk 0:01:47]}  Rab8 {[%clk 0:02:18]} 21. Rb1 {[%clk 0:01:46]}  Ne7 {[%clk 0:01:47]} 22. Kh1 {[%clk 0:01:45]}  Bb7 {[%clk 0:01:43]} 23. Rb5 {[%clk 0:01:43]}  Qc7 {[%clk 0:01:41]} 24. Qc2 {[%clk 0:01:21]}  Kg7 {[%clk 0:01:40]} 25. Rfb1 {[%clk 0:01:18]}  Bc6 {[%clk 0:01:37]} 26. Ng5 {[%clk 0:01:18]}  Bd7 {[%clk 0:01:23]} 27. R5b4 {[%clk 0:01:15]}  a5 {[%clk 0:01:21]} 28. R4b2 {[%clk 0:01:15]}  Rxb2 {[%clk 0:01:20]} 29. Qxb2 {[%clk 0:01:14]}  Nc6 {[%clk 0:01:09]} 30. Nb5 {[%clk 0:01:10]}  Qb8 {[%clk 0:01:03]} 31. Qa3 {[%clk 0:01:03]}  Nxe5 {[%clk 0:00:58]} 32. fxe5 {[%clk 0:00:56]}  Qxe5 {[%clk 0:00:59]} 33. Qe7 {[%clk 0:00:55]}  Bxb5 {[%clk 0:00:50]} 34. Qxf7+ {[%clk 0:00:42]}  Kh6 {[%clk 0:00:50]} 35. h4 {[%clk 0:00:40]}  Rh8 {[%clk 0:00:35]} 36. axb5 {[%clk 0:00:34]}  Qg3 {[%clk 0:00:36]} 37. Nf3 {[%clk 0:00:26]}  e5 {[%clk 0:00:35]} 38. Qf6 {[%clk 0:00:23]}  e4 {[%clk 0:00:35]} 39. Qxh8# {[%clk 0:00:23]} 1-0


[Site "https://www.chess.com"]

[Event "Titled Tuesday Blitz July 11 Early 2023"]
[White "Glavina, Pablo"]
[Black "Grigoryan, Meri"]
[WhiteFideId "100234"]
[BlackFideId "13300571"]
[WhiteElo "2384"]
[BlackElo "2138"]
[Result "1/2-1/2"]
[Round "6"]
[TimeControl "180+2"]
[Date "2023.07.11"]
[WhiteClock "0:02:07"]
[BlackClock "0:00:39"]
[Board "173"]

1. e4 {[%clk 0:03:00]}  e5 {[%clk 0:02:59]} 2. Nf3 {[%clk 0:03:01]}  Nc6 {[%clk 0:02:57]} 3. Nc3 {[%clk 0:03:01]}  Bb4 {[%clk 0:02:56]} 4. Nd5 {[%clk 0:02:57]}  Bc5 {[%clk 0:02:53]} 5. Nxe5 {[%clk 0:02:52]}  Bxf2+ {[%clk 0:02:42]} 6. Kxf2 {[%clk 0:02:49]}  Nxe5 {[%clk 0:02:41]} 7. d4 {[%clk 0:02:46]}  Qh4+ {[%clk 0:02:28]} 8. g3 {[%clk 0:02:42]}  Qxe4 {[%clk 0:02:27]} 9. Bg2 {[%clk 0:02:38]}  Ng4+ {[%clk 0:02:16]} 10. Kg1 {[%clk 0:02:32]}  Qf5 {[%clk 0:02:14]} 11. Qe2+ {[%clk 0:02:27]}  Kd8 {[%clk 0:01:56]} 12. Bf4 {[%clk 0:02:18]}  d6 {[%clk 0:01:55]} 13. Bh3 {[%clk 0:02:11]}  Qxd5 {[%clk 0:00:39]} 14. Bxg4 {[%clk 0:02:07]} 1/2-1/2


[Site "https://www.chess.com"]

[Event "Titled Tuesday Blitz July 11 Early 2023"]
[White "Vila Dupla, Aurelio"]
[Black "Barbot, Pierre"]
[WhiteFideId "2203383"]
[BlackFideId "663727"]
[WhiteElo "2136"]
[BlackElo "2361"]
[Result "1-0"]
[Round "6"]
[TimeControl "180+2"]
[Date "2023.07.11"]
[WhiteClock "0:01:21"]
[BlackClock "0:00:04"]
[Board "174"]

1. Nf3 {[%clk 0:02:55]}  d5 {[%clk 0:02:54]} 2. d4 {[%clk 0:02:55]}  Nf6 {[%clk 0:02:53]} 3. c4 {[%clk 0:02:55]}  e6 {[%clk 0:02:46]} 4. cxd5 {[%clk 0:02:55]}  exd5 {[%clk 0:02:44]} 5. Nc3 {[%clk 0:02:55]}  Bb4 {[%clk 0:02:22]} 6. Bg5 {[%clk 0:02:38]}  O-O {[%clk 0:01:56]} 7. e3 {[%clk 0:02:37]}  h6 {[%clk 0:01:47]} 8. Bxf6 {[%clk 0:02:33]}  Qxf6 {[%clk 0:01:46]} 9. Qb3 {[%clk 0:02:33]}  c5 {[%clk 0:01:03]} 10. dxc5 {[%clk 0:02:25]}  Bxc3+ {[%clk 0:00:57]} 11. Qxc3 {[%clk 0:02:24]}  Qxc3+ {[%clk 0:00:56]} 12. bxc3 {[%clk 0:02:24]}  Nd7 {[%clk 0:00:49]} 13. O-O-O {[%clk 0:02:24]}  Nf6 {[%clk 0:00:47]} 14. Nd4 {[%clk 0:02:11]}  Bd7 {[%clk 0:00:38]} 15. Bd3 {[%clk 0:01:52]}  Rfc8 {[%clk 0:00:34]} 16. Nb3 {[%clk 0:01:48]}  Ba4 {[%clk 0:00:32]} 17. Kd2 {[%clk 0:01:47]}  Bxb3 {[%clk 0:00:26]} 18. axb3 {[%clk 0:01:47]}  Rxc5 {[%clk 0:00:27]} 19. h3 {[%clk 0:01:39]}  Rac8 {[%clk 0:00:26]} 20. Rc1 {[%clk 0:01:39]}  Kf8 {[%clk 0:00:25]} 21. Rc2 {[%clk 0:01:38]}  Ne4+ {[%clk 0:00:21]} 22. Bxe4 {[%clk 0:01:37]}  dxe4 {[%clk 0:00:22]} 23. Ra1 {[%clk 0:01:35]}  a6 {[%clk 0:00:21]} 24. Ra4 {[%clk 0:01:34]}  f5 {[%clk 0:00:18]} 25. Rd4 {[%clk 0:01:33]}  Ke7 {[%clk 0:00:18]} 26. c4 {[%clk 0:01:24]}  b5 {[%clk 0:00:16]} 27. Kc3 {[%clk 0:01:24]}  bxc4 {[%clk 0:00:07]} 28. Rxc4 {[%clk 0:01:22]}  Ra5 {[%clk 0:00:04]} 29. Rxc8 {[%clk 0:01:21]} 1-0


[Site "https://www.chess.com"]